bitfinex/quotes_SOLUSD_20220117
["timestamp","ask_amount","ask_price","bid_price","bid_amount"]
[1642384538422,35.62561629,145.98,145.86,69.16555769]
[1642384538423,11.78181629,145.98,145.86,69.16555769]
[1642384538623,11.78181629,145.98,145.89,10.2777]
[1642384538821,9.84,145.98,145.9,0.26]
[1642384539220,47.30906357,145.97,145.9,0.26]
[1642384539619,46.80906357,145.97,145.9,0.26]
[1642384539822,0.26,145.96,145.89,6.0]
[1642384540120,0.26,145.96,145.89,0.25]
[1642384540722,0.26,145.96,145.89,0.51]
[1642384541221,0.26,145.96,145.89,0.26]
[1642384541622,0.26,145.96,145.88,6.25]
[1642384541822,0.26,145.96,145.88,0.25]
[1642384542023,0.26,145.96,145.88,6.25]
[1642384543627,0.26,145.96,145.88,0.25]
[1642384543823,0.26,145.96,145.88,6.0]
[1642384544027,10.5405,145.96,145.88,6.0]
[1642384544235,10.5405,145.96,145.87,24.5132]
[1642384544427,10.7905,145.96,145.87,24.5132]
[1642384544829,10.7905,145.96,145.85,1.84882085]
[1642384545126,48.59324029,145.94,145.85,12.12932085]
[1642384545326,48.59324029,145.94,145.85,18.37932085]
[1642384545531,48.84324029,145.94,145.85,18.37932085]
[1642384546227,48.84324029,145.94,145.85,41.87212085]
[1642384547829,0.26,145.93,145.85,41.87212085]
[1642384553032,0.26,145.93,145.85,40.0233]
[1642384554162,0.26,145.93,145.85,29.7428]
[1642384554963,0.26,145.93,145.85,29.4928]
[1642384555163,0.26,145.93,145.85,23.7428]
[1642384556464,10.5427,145.93,145.85,23.7428]
[1642384556668,10.7927,145.93,145.85,23.7428]
[1642384560271,10.7927,145.93,145.85,29.7428]
[1642384560473,10.7927,145.93,145.85,0.25]
[1642384560674,10.7927,145.93,145.84,24.2635]
[1642384560873,10.7927,145.93,145.84,30.2635]
[1642384561080,10.7927,145.93,145.84,24.2635]
[1642384561274,10.7927,145.93,145.84,30.2635]
[1642384561679,10.7927,145.93,145.84,24.2635]
[1642384562478,10.5327,145.93,145.84,24.2635]
[1642384562676,10.5327,145.93,145.84,30.2635]
[1642384563178,10.5327,145.93,145.84,30.0135]
[1642384563377,10.5327,145.93,145.79,3.87835714]
[1642384563378,157.0,145.91,145.79,3.87835714]
[1642384563579,10.2893,145.88,145.79,3.87835714]
[1642384563776,9.84,145.87,145.79,3.87835714]
[1642384563978,10.1,145.87,145.79,3.87835714]
[1642384564177,35.50814247,145.86,145.79,3.87835714]
[1642384564380,9.84,145.85,145.79,3.87835714]
[1642384564579,16.93077588,145.85,145.79,3.87835714]
[1642384564778,10.2909,145.82,145.76,4.99627646]
[1642384564980,26.5059,145.82,145.76,4.99627646]
[1642384565181,26.7559,145.82,145.76,4.99627646]
[1642384565381,26.7559,145.82,145.7,10.2903]
[1642384565679,46.46076228,145.81,145.7,16.5403]
[1642384565879,9.84,145.8,145.7,16.5403]
[1642384566082,10.09,145.8,145.7,16.2903]
[1642384566282,10.09,145.8,145.7,6.0]
[1642384566681,10.09,145.8,145.68,16.2921]
[1642384567081,16.09,145.8,145.68,16.2921]
[1642384567381,26.3818,145.8,145.68,16.5421]
[1642384567581,26.3818,145.8,145.68,39.9838]
[1642384568986,26.3818,145.8,145.69,10.5515]
[1642384569383,26.1318,145.8,145.7,22.5747]
[1642384569582,0.26,145.79,145.7,22.5747]
[1642384569784,10.1,145.79,145.71,0.26]
[1642384570085,42.66965526,145.78,145.71,0.26]
[1642384570485,48.66965526,145.78,145.71,0.26]
[1642384571189,9.84,145.79,145.71,0.26]
[1642384571388,9.84,145.81,145.71,68.41]
[1642384571686,11.08679257,145.83,145.71,68.41]
[1642384571888,9.84,145.83,145.72,93.0986]
[1642384572286,47.29788524,145.83,145.73,43.1174909]
[1642384572485,47.29788524,145.83,145.74,68.15]
[1642384572888,47.29788524,145.83,145.75,0.26]
[1642384573487,47.29788524,145.83,145.76,9.71326425]
[1642384573890,47.29788524,145.83,145.77,0.26]
[1642384575190,47.29788524,145.83,145.75,0.26]
[1642384575391,47.29788524,145.83,145.76,10.2865]
[1642384575796,47.29788524,145.83,145.77,0.26]
[1642384576294,37.45788524,145.83,145.77,0.26]
[1642384576891,9.84,145.86,145.77,0.26]
[1642384577091,9.84,145.86,145.77,10.5458]
[1642384577294,34.104,145.9,145.77,10.5458]
[1642384577494,34.104,145.9,145.78,23.9301]
[1642384577994,41.1287684,145.89,145.79,0.26]
[1642384578392,41.3787684,145.89,145.8,10.2839]
[1642384578592,41.3787684,145.89,145.78,23.9301]
[1642384578797,41.3787684,145.89,145.75,23.5391]
[1642384578995,65.8980684,145.89,145.75,29.5391]
[1642384579798,65.8980684,145.89,145.77,9.28159189]
[1642384579997,0.26,145.88,145.78,24.9856]
[1642384580197,0.26,145.88,145.78,25.2456]
[1642384580423,0.26,145.88,145.78,31.4956]
[1642384581023,0.26,145.88,145.78,31.2356]
[1642384582426,0.26,145.88,145.79,0.26]
[1642384585637,0.26,145.88,145.79,10.5444]
[1642384585828,0.26,145.88,145.79,16.7944]
[1642384586028,0.26,145.88,145.8,23.3578]
[1642384586432,0.26,145.88,145.81,0.26]
[1642384587228,41.1287684,145.89,145.81,9.44044317]
[1642384587429,9.84,145.92,145.81,83.84044317]
[1642384587632,9.84,145.92,145.82,24.5416]
[1642384587835,15.84,145.92,145.83,0.26]
[1642384588232,9.84,145.92,145.83,0.26]
[1642384588431,49.5183582,145.91,145.83,0.26]
[1642384588632,49.7783582,145.91,145.83,0.26]
[1642384588832,50.0283582,145.91,145.83,0.26]
[1642384589433,50.0283582,145.91,145.83,10.5417]
[1642384589836,50.0283582,145.91,145.83,0.25]
[1642384590234,50.0283582,145.91,145.82,24.5416]
[1642384590432,50.0283582,145.91,145.77,77.99]
[1642384590634,50.0283582,145.91,145.8,6.0]
[1642384590837,9.84,145.9,145.77,68.27562065]
[1642384591233,10.09,145.9,145.77,68.27562065]
[1642384591635,23.8079,145.89,145.77,68.27562065]
[1642384591833,45.54841805,145.88,145.79,10.2844]
[1642384592041,45.54841805,145.88,145.78,0.26]
[1642384592235,45.79841805,145.88,145.78,0.26]
[1642384592935,45.79841805,145.88,145.78,10.5452]
[1642384593134,45.79841805,145.88,145.78,16.7952]
[1642384594837,0.26,145.87,145.79,6.22276404]
[1642384595038,9.84,145.9,145.79,16.50716404]
[1642384595237,9.84,145.9,145.8,23.0171]
[1642384595438,9.84,145.9,145.8,29.2671]
[1642384596037,47.05229296,145.9,145.8,29.2671]
[1642384596439,47.30229296,145.9,145.83,10.2818]
[1642384596740,47.05229296,145.9,145.83,15.8948]
[1642384596938,47.05229296,145.9,145.84,0.26]
[1642384597845,47.05229296,145.9,145.83,0.51]
[1642384598141,47.05229296,145.9,145.83,0.26]
[1642384598440,47.05229296,145.9,145.84,10.2808]
[1642384598841,47.05229296,145.9,145.85,0.26]
[1642384599445,47.05229296,145.9,145.84,0.25]
[1642384599842,47.05229296,145.9,145.81,0.26]
[1642384600444,47.05229296,145.9,145.82,10.2823]
[1642384600643,46.55229296,145.9,145.82,10.2823]
[1642384600843,46.55229296,145.9,145.83,0.26]
[1642384604946,46.80229296,145.9,145.83,0.26]
[1642384607084,46.80229296,145.9,145.83,10.5415]
[1642384607283,46.80229296,145.9,145.83,10.7915]
[1642384609182,46.80229296,145.9,145.83,10.5315]
[1642384609383,46.80229296,145.9,145.81,10.283]
[1642384609591,46.80229296,145.9,145.8,22.7571]
[1642384609592,46.80229296,145.9,145.8,23.0071]
[1642384611587,46.80229296,145.9,145.8,0.25]
[1642384611885,0.26,145.89,145.8,0.26]
[1642384613486,10.5454,145.89,145.8,0.26]
[1642384613886,10.7954,145.89,145.8,0.26]
[1642384619299,20.6354,145.89,145.8,0.26]
[1642384619694,20.6354,145.89,145.8,23.5679]
[1642384619894,20.6354,145.89,145.8,23.8179]
[1642384624496,20.6354,145.89,145.8,23.5679]
[1642384625902,20.6354,145.89,145.8,23.8179]
[1642384626808,20.6354,145.89,145.8,23.5679]
[1642384627004,20.6354,145.89,145.8,23.8179]
[1642384627405,20.6354,145.89,145.8,23.5679]
[1642384627603,20.6354,145.89,145.8,0.26]
[1642384628006,43.7877,145.89,145.8,0.26]
[1642384631007,43.7877,145.89,145.78,0.26]
[1642384633510,43.7877,145.89,145.78,10.5453]
[1642384633909,43.7877,145.89,145.78,16.7953]
[1642384634711,43.7877,145.89,145.78,28.23813656]
[1642384634910,43.7877,145.89,145.79,33.5887]
[1642384635313,43.7877,145.89,145.8,0.26]
[1642384638513,43.7877,145.89,145.79,33.8387]
[1642384638914,43.7877,145.89,145.79,39.8387]
[1642384639124,43.7877,145.89,145.79,33.8387]
[1642384642018,32.9923,145.89,145.79,33.8387]
[1642384642217,9.84,145.89,145.81,10.283]
[1642384642419,10.09,145.89,145.82,0.26]
[1642384642917,9.84,145.89,145.82,0.26]
[1642384643321,9.84,145.89,145.81,0.51]
[1642384643519,9.84,145.89,145.81,0.26]
[1642384644522,9.84,145.89,145.82,10.2824]
[1642384644922,9.84,145.89,145.83,0.26]
[1642384645122,9.84,145.89,145.83,5.658]
[1642384645523,9.84,145.89,145.83,16.1896]
[1642384646929,9.84,145.89,145.83,5.908]
[1642384647130,9.84,145.89,145.83,0.51]
[1642384647331,10.09,145.89,145.83,0.26]
[1642384647628,9.84,145.89,145.83,0.26]
[1642384647853,9.84,145.89,145.82,0.26]
[1642384648054,9.84,145.89,145.82,10.5425]
[1642384649256,37.21229296,145.9,145.82,16.5425]
[1642384649458,37.21229296,145.9,145.82,17.1285]
[1642384649657,37.21229296,145.9,145.82,17.3785]
[1642384649856,9.84,145.93,145.82,17.3785]
[1642384650059,9.84,145.93,145.86,10.2797]
[1642384650461,9.84,145.93,145.86,10.5297]
[1642384650871,43.12004557,145.92,145.86,10.5297]
[1642384651062,43.12004557,145.92,145.83,23.5207]
[1642384651261,44.82082145,145.92,145.85,0.25]
[1642384651464,45.07082145,145.92,145.83,23.5207]
[1642384651662,54.91082145,145.92,145.83,23.5207]
[1642384651860,0.26,145.91,145.83,23.5207]
[1642384652561,0.26,145.91,145.82,24.9716]
[1642384652760,0.26,145.91,145.82,25.2216]
[1642384653464,10.5442,145.91,145.82,25.2216]
[1642384653662,10.5442,145.91,145.83,24.3228]
[1642384653860,10.7942,145.91,145.83,24.5728]
[1642384654760,10.2942,145.91,145.83,24.5728]
[1642384654961,10.2942,145.91,145.83,24.3228]
[1642384655161,10.2942,145.91,145.83,24.5728]
[1642384655361,20.1342,145.91,145.83,24.5728]
[1642384658762,20.1342,145.91,145.83,24.3228]
[1642384658964,20.1342,145.91,145.83,24.5728]
[1642384660266,21.83497588,145.91,145.78,10.2852]
[1642384660468,10.2867,145.87,145.79,22.8093]
[1642384660666,26.1267,145.87,145.79,22.8093]
[1642384660866,26.3767,145.87,145.79,22.8093]
[1642384661268,48.45956206,145.86,145.79,28.8093]
[1642384661466,48.70956206,145.86,145.79,28.8093]
[1642384661668,9.84,145.85,145.79,22.8093]
[1642384661867,10.09,145.85,145.79,22.8093]
[1642384662469,9.84,145.85,145.79,22.8093]
[1642384662668,10.09,145.85,145.79,22.8093]
[1642384662869,10.09,145.85,145.79,23.0593]
[1642384663168,10.09,145.85,145.79,0.25]
[1642384663371,10.09,145.85,145.76,23.7229]
[1642384663768,10.09,145.85,145.76,23.9729]
[1642384663969,33.2525,145.85,145.76,23.9729]
[1642384666082,33.0025,145.85,145.76,23.9729]
[1642384667270,9.84,145.85,145.76,51.57321213]
[1642384667675,9.84,145.85,145.77,0.26]
[1642384668772,10.09,145.85,145.77,10.5461]
[1642384668972,10.09,145.85,145.77,10.7961]
[1642384670775,10.09,145.85,145.77,0.51]
[1642384670974,10.09,145.85,145.77,0.26]
[1642384673381,20.3782,145.85,145.77,0.26]
[1642384677106,10.09,145.85,145.77,0.26]
[1642384677308,10.09,145.85,145.76,34.2596]
[1642384678709,10.09,145.85,145.77,0.26]
[1642384681511,32.9718,145.85,145.77,0.26]
[1642384682910,43.2601,145.85,145.77,0.26]
[1642384683513,49.2601,145.85,145.77,0.26]
[1642384683715,50.96087588,145.85,145.77,0.26]
[1642384684114,49.2601,145.85,145.77,0.26]
[1642384685216,38.9718,145.85,145.77,0.26]
[1642384686319,32.9718,145.85,145.77,0.26]
[1642384686821,38.9718,145.85,145.73,1.94964003]
[1642384687019,40.67257588,145.85,145.73,1.94964003]
[1642384687219,52.84936742,145.85,145.74,1.94964003]
[1642384687420,68.15,145.82,145.74,1.94964003]
[1642384687620,9.84,145.81,145.74,1.94964003]
[1642384687818,10.09,145.81,145.74,1.94964003]
[1642384688019,44.37000648,145.8,145.74,1.94964003]
[1642384688220,9.84,145.79,145.74,0.25]
[1642384688420,20.3823,145.79,145.71,26.83304003]
[1642384689221,20.3823,145.79,145.71,24.8834]
[1642384689424,26.3823,145.79,145.71,24.8834]
[1642384693254,20.3823,145.79,145.71,24.8834]
[1642384693453,26.3823,145.79,145.71,24.8834]
[1642384693856,20.3823,145.79,145.71,24.8834]
[1642384694553,10.09,145.79,145.71,24.8834]
[1642384694953,16.09,145.79,145.71,24.8834]
[1642384695156,10.09,145.79,145.71,24.8834]
[1642384695457,16.09,145.79,145.71,24.6334]
[1642384696059,10.09,145.79,145.71,24.6334]
[1642384696455,16.09,145.79,145.71,24.6334]
[1642384696658,16.09,145.79,145.71,24.8834]
[1642384696858,10.09,145.79,145.71,24.8834]
[1642384697760,16.09,145.79,145.71,24.8834]
[1642384697962,10.09,145.79,145.71,24.8834]
[1642384698764,16.09,145.79,145.71,24.8834]
[1642384698959,10.09,145.79,145.71,24.8834]
[1642384699461,16.09,145.79,145.71,24.8834]
[1642384699662,9.84,145.79,145.71,24.8834]
[1642384699864,10.09,145.79,145.71,42.2830111]
[1642384700061,10.09,145.79,145.71,24.8834]
[1642384700863,16.09,145.79,145.71,24.8834]
[1642384701063,10.09,145.79,145.71,24.8834]
[1642384701663,10.09,145.79,145.71,24.6334]
[1642384701863,10.09,145.79,145.71,24.8834]
[1642384702964,16.09,145.79,145.71,24.8834]
[1642384705165,15.84,145.79,145.71,24.8834]
[1642384706166,9.84,145.79,145.71,24.8834]
[1642384706867,10.09,145.79,145.71,24.6334]
[1642384707265,10.09,145.79,145.72,1.94964003]
[1642384708367,16.09,145.79,145.72,2.19964003]
[1642384708767,10.09,145.79,145.72,2.19964003]
[1642384710978,10.09,145.79,145.72,1.94964003]
[1642384712373,10.09,145.79,145.72,0.25]
[1642384712573,20.3825,145.79,145.72,0.25]
[1642384713376,20.3825,145.79,145.71,26.83304003]
[1642384716375,20.1325,145.79,145.71,26.83304003]
[1642384716575,1.89689416,145.81,145.72,68.41]
[1642384716775,1.89689416,145.81,145.74,68.15]
[1642384716976,1.89689416,145.81,145.74,74.295]
[1642384717179,1.89689416,145.81,145.75,1.26264858]
[1642384717379,1.89689416,145.81,145.75,7.51264858]
[1642384717581,1.89689416,145.81,145.76,115.74220649]
[1642384717979,1.89689416,145.81,145.77,1.26264858]
[1642384718179,39.5205972,145.84,145.78,12.23444003]
[1642384718382,39.5205972,145.84,145.79,0.26]
[1642384719381,39.5205972,145.84,145.79,10.5452]
[1642384719789,39.5205972,145.84,145.79,10.7952]
[1642384720482,39.5205972,145.84,145.79,16.7952]
[1642384720680,39.5205972,145.84,145.79,10.7952]
[1642384720881,39.5205972,145.84,145.79,16.7952]
[1642384721082,9.84,145.87,145.79,10.7952]
[1642384721981,9.84,145.87,145.79,33.7879]
[1642384722181,37.68902104,145.86,145.79,33.7879]
[1642384723281,9.84,145.89,145.79,101.9379]
[1642384723483,1.89689416,145.91,145.79,117.03254858]
[1642384723786,7.89689416,145.91,145.79,117.03254858]
[1642384723982,1.89689416,145.91,145.79,117.03254858]
[1642384724384,44.4417987,145.9,145.79,48.88254858]
[1642384724583,44.4417987,145.9,145.79,40.79054858]
[1642384724783,50.4417987,145.9,145.79,40.79054858]
[1642384726910,50.4417987,145.9,145.79,39.7879]
[1642384727314,50.4417987,145.9,145.79,107.9379]
[1642384728413,50.4417987,145.9,145.79,39.7879]
[1642384728615,50.6917987,145.9,145.79,39.7879]
[1642384728914,50.6917987,145.9,145.79,33.7879]
[1642384729116,50.6917987,145.9,145.79,39.7879]
[1642384729917,60.9764987,145.9,145.79,39.7879]
[1642384730816,60.9764987,145.9,145.79,50.1282]
[1642384734118,60.7264987,145.9,145.79,50.1282]
[1642384734317,60.9764987,145.9,145.79,50.1282]
[1642384734718,60.9764987,145.9,145.79,33.2779]
[1642384734921,9.84,145.89,145.79,10.5352]
[1642384735120,10.2863,145.88,145.79,10.5352]
[1642384735321,9.84,145.87,145.79,10.5352]
[1642384735819,10.09,145.87,145.79,10.5352]
[1642384737622,16.09,145.87,145.79,10.5352]
[1642384739122,16.09,145.87,145.79,0.25]
[1642384739521,17.79077588,145.87,145.78,0.26]
[1642384739722,28.07767588,145.87,145.78,0.26]
[1642384740730,28.07767588,145.87,145.78,23.5557]
[1642384740927,28.07767588,145.87,145.78,29.8057]
[1642384741136,22.07767588,145.87,145.78,28.63951271]
[1642384741329,9.84,145.87,145.78,34.0915]
[1642384741832,9.84,145.87,145.78,40.0915]
[1642384742029,9.84,145.87,145.78,39.8315]
[1642384742232,17.79077588,145.87,145.73,1.94964003]
[1642384742429,17.79077588,145.87,145.75,1.94964003]
[1642384742829,16.09,145.87,145.75,1.94964003]
[1642384743030,22.6093,145.86,145.75,1.94964003]
[1642384743235,9.84,145.85,145.77,10.2863]
[1642384743435,6.0,145.86,145.78,48.72492411]
[1642384743633,45.74066744,145.85,145.78,54.72492411]
[1642384743832,45.74066744,145.85,145.79,0.26]
[1642384744439,45.74066744,145.85,145.8,10.2819]
[1642384745131,45.74066744,145.85,145.8,10.5319]
[1642384746136,45.74066744,145.85,145.78,6.0]
[1642384746333,52.71566744,145.85,145.78,0.25]
[1642384746732,52.46566744,145.85,145.78,0.25]
[1642384747535,45.74066744,145.85,145.77,41.46604095]
[1642384747733,45.74066744,145.85,145.78,10.545]
[1642384747933,45.74066744,145.85,145.78,10.795]
[1642384748335,45.74066744,145.85,145.78,33.7311]
[1642384750036,9.84,145.87,145.78,39.7311]
[1642384750440,1.89689416,145.88,145.78,39.7311]
[1642384750638,1.89689416,145.88,145.79,69.15264858]
[1642384750840,1.89689416,145.88,145.81,10.2821]
[1642384751040,40.98097324,145.88,145.81,10.2821]
[1642384751240,40.98097324,145.88,145.82,0.26]
[1642384751442,39.08407908,145.88,145.82,0.26]
[1642384752442,39.08407908,145.88,145.82,10.5423]
[1642384752643,11.73689416,145.9,145.82,10.7923]
[1642384753643,11.73689416,145.9,145.83,12.35736278]
[1642384753644,1.89689416,145.9,145.83,12.35736278]
[1642384753844,1.89689416,145.9,145.85,10.2794]
[1642384754044,1.89689416,145.9,145.85,17.9304]
[1642384754243,1.89689416,145.9,145.86,0.26]
[1642384754445,1.89689416,145.91,145.86,0.26]
[1642384755048,1.89689416,145.91,145.85,0.25]
[1642384755248,1.89689416,145.91,145.87,10.2771]
[1642384755448,9.416e-05,145.91,145.88,0.26]
[1642384755653,9.416e-05,145.94,145.88,0.26]
[1642384756449,9.416e-05,145.94,145.89,10.2751]
[1642384756854,9.416e-05,145.94,145.89,10.5251]
[1642384757156,44.00180276,145.96,145.89,10.5251]
[1642384757355,44.25180276,145.96,145.89,10.5251]
[1642384757655,44.00180276,145.96,145.89,10.5251]
[1642384757954,44.00180276,145.96,145.9,10.5364]
[1642384758355,44.00180276,145.96,145.9,10.7864]
[1642384758755,9.84,145.99,145.9,10.7864]
[1642384759161,10.09,145.99,145.9,10.7864]
[1642384759761,38.84803447,145.98,145.9,10.7864]
[1642384761180,38.84803447,145.98,145.9,16.7864]
[1642384761384,38.84803447,145.98,145.9,10.7864]
[1642384761583,38.84803447,145.98,145.9,16.7864]
[1642384763684,38.84803447,145.98,145.91,42.15546155]
[1642384763886,38.84803447,145.98,145.92,10.5348]
[1642384764285,38.84803447,145.98,145.92,16.7848]
[1642384764485,22.9403,146.0,145.92,16.7848]
[1642384764685,9.84,146.01,145.92,16.7848]
[1642384764887,10.09,146.01,145.92,16.7848]
[1642384765291,9.84,146.01,145.92,16.7848]
[1642384765487,38.77490583,146.0,145.92,16.7848]
[1642384767289,39.02490583,146.0,145.92,16.7848]
[1642384768192,38.77490583,146.0,145.92,16.7848]
[1642384768392,39.02490583,146.0,145.92,16.7848]
[1642384770492,39.02490583,146.0,145.92,16.5248]
[1642384770699,39.02490583,146.0,145.92,6.25]
[1642384770995,39.02490583,146.0,145.92,0.25]
[1642384771195,39.02490583,146.0,145.92,6.25]
[1642384771400,39.02490583,146.0,145.92,6.0]
[1642384771626,9.84,145.99,145.92,6.0]
[1642384771797,9.84,145.99,145.87,16.2544]
[1642384771993,34.8667,145.99,145.87,16.2544]
[1642384772393,34.8667,145.99,145.88,10.2777]
[1642384772794,34.8667,145.99,145.89,0.26]
[1642384775899,40.8667,145.99,145.89,0.26]
[1642384776099,51.1451,145.99,145.89,0.26]
[1642384777295,45.1451,145.99,145.89,0.26]
[1642384779300,113.2951,145.99,145.89,0.26]
[1642384779497,113.2951,145.99,145.88,6.0]
[1642384779901,113.2951,145.99,145.89,0.26]
[1642384780099,45.1451,145.99,145.89,0.26]
[1642384780304,45.1451,145.99,145.88,0.51]
[1642384780707,51.1451,145.99,145.88,0.51]
[1642384780902,51.1451,145.99,145.88,0.26]
[1642384781299,45.1451,145.99,145.87,0.26]
[1642384781499,45.1451,145.99,145.88,10.2785]
[1642384781901,45.1451,145.99,145.89,0.26]
[1642384782499,51.1451,145.99,145.89,0.26]
[1642384783101,48.96650926,145.99,145.89,0.26]
[1642384783301,54.96650926,145.99,145.89,0.26]
[1642384785202,48.96650926,145.99,145.89,20.82549077]
[1642384785404,48.96650926,145.99,145.89,27.07549077]
[1642384786002,3.89786435,145.98,145.89,27.07549077]
[1642384786305,13.73786435,145.98,145.89,27.07549077]
[1642384786501,13.98786435,145.98,145.89,27.07549077]
[1642384786902,10.09,145.98,145.89,27.07549077]
[1642384788504,9.84,145.98,145.89,27.07549077]
[1642384789706,10.09,145.98,145.89,27.07549077]
[1642384790305,9.84,145.98,145.89,27.07549077]
[1642384792213,24.7767,145.99,145.89,27.07549077]
[1642384792413,25.0267,145.99,145.89,27.07549077]
[1642384792812,13.66140926,146.01,145.89,27.07549077]
[1642384793016,3.82140926,146.01,145.89,27.07549077]
[1642384793218,3.82140926,146.01,145.89,28.07813935]
[1642384793415,3.82140926,146.01,145.9,9.84]
[1642384793618,3.82140926,146.01,145.93,10.274]
[1642384793820,43.9282066,146.01,145.94,0.26]
[1642384794837,43.9282066,146.01,145.93,0.25]
[1642384795038,43.9282066,146.01,145.92,0.26]
[1642384795238,44.1782066,146.01,145.94,10.2739]
[1642384795441,44.1782066,146.01,145.95,0.26]
[1642384796645,43.9282066,146.01,145.95,0.26]
[1642384797441,44.1782066,146.01,145.95,0.26]
[1642384798750,26.35690926,146.04,145.95,18.2836]
[1642384798949,26.60690926,146.04,145.95,24.5336]
[1642384799150,4.07140926,146.04,145.95,24.5336]
[1642384799744,49.34359254,146.03,145.95,24.5336]
[1642384802754,49.34359254,146.03,145.95,6.0]
[1642384802949,49.34359254,146.03,145.93,10.2749]
[1642384802950,51.29436842,146.03,145.93,10.2749]
[1642384803359,51.29436842,146.03,145.93,6.0]
[1642384803954,51.29436842,146.03,145.92,15.84]
[1642384804554,61.56996842,146.03,145.92,26.1154]
[1642384805655,71.40996842,146.03,145.92,6.0]
[1642384805855,88.92098759,146.03,145.91,6.0]
[1642384806055,77.40996842,146.03,145.91,6.0]
[1642384806255,77.40996842,146.03,145.88,6.0]
[1642384806455,93.1421,146.02,145.87,24.5893]
[1642384806656,68.15,145.97,145.84,99.7037]
[1642384806861,9.84,145.96,145.85,23.8035]
[1642384807057,11.54077588,145.96,145.85,23.8035]
[1642384807258,45.47815673,145.95,145.85,23.8035]
[1642384807456,57.26893261,145.95,145.85,23.8035]
[1642384807658,1.70077588,145.94,145.85,23.8035]
[1642384807858,1.70077588,145.94,145.85,30.0535]
[1642384808358,1.70077588,145.94,145.85,29.8035]
[1642384808560,1.95077588,145.94,145.85,6.0]
[1642384808759,9.84,145.93,145.85,6.0]
[1642384808959,11.79077588,145.93,145.84,30.2707]
[1642384809362,11.79077588,145.93,145.84,6.0]
[1642384809560,11.98437588,145.92,145.84,6.0]
[1642384809759,11.98437588,145.92,145.81,6.0]
[1642384809960,12.23437588,145.92,145.8,86.98424279]
[1642384810560,12.23437588,145.92,145.8,39.3032]
[1642384810561,9.84,145.91,145.8,39.3032]
[1642384810763,21.82507588,145.91,145.81,0.26]
[1642384810961,1.70077588,145.9,145.81,0.26]
[1642384811364,1.95077588,145.9,145.81,0.26]
[1642384811660,39.66696015,145.89,145.81,0.26]
[1642384811863,50.20236015,145.89,145.8,6.0]
[1642384812261,60.04236015,145.89,145.78,50.6397]
[1642384812865,60.04236015,145.89,145.78,50.8897]
[1642384813261,66.04236015,145.89,145.78,40.7764]
[1642384813461,71.52136015,145.89,145.78,6.0]
[1642384813663,1.70077588,145.88,145.76,40.7122]
[1642384813861,10.288,145.85,145.76,30.4255]
[1642384814261,44.25203879,145.84,145.76,30.4255]
[1642384814466,44.50203879,145.84,145.76,30.4255]
[1642384814861,44.50203879,145.84,145.76,30.6755]
[1642384818764,44.50203879,145.84,145.76,24.6755]
[1642384819064,44.50203879,145.84,145.76,30.6755]
[1642384819264,44.50203879,145.84,145.76,6.25]
[1642384819464,44.50203879,145.84,145.76,0.25]
[1642384819669,54.34203879,145.84,145.76,6.25]
[1642384820066,133.17093879,145.84,145.76,6.25]
[1642384820267,133.17093879,145.84,145.74,6.0]
[1642384820268,134.87171467,145.84,145.74,6.0]
[1642384820466,134.87171467,145.84,145.71,16.3991]
[1642384820667,134.87171467,145.84,145.71,16.6491]
[1642384821169,66.33171467,145.84,145.71,16.6491]
[1642384821366,64.63093879,145.84,145.71,26.9395]